fUST/lending_fUST_20240424
["ID","MTS","AMOUNT","RATE_DAILY","PERIOD"]
[323380680,1713960643683,-4016.93540276,0.00013297,2]
[323383447,1713960845850,700.0,0.00011965,2]
[323383450,1713960845882,24.38854265,0.00011965,2]
[323385677,1713961187491,375.61145735,0.00011965,2]
[323385678,1713961187537,297.81234638,0.00011965,2]
[323385679,1713961196424,181.03707167,0.00011965,2]
[323385680,1713961214410,181.03707167,0.00011965,2]
[323385681,1713961236852,255.32915162,0.00011965,2]
[323385682,1713961245635,538.59145697,0.00011965,2]
[323385683,1713961261563,46.19290169,0.00011965,2]
[323385684,1713961353176,250.0,0.00011046,2]
[323385685,1713961378156,538.59145697,0.00011046,2]
[323385686,1713961394148,280.60614908,0.00011046,2]
[323385687,1713961412504,2036.0305109,0.00011128,2]
[323385688,1713961416796,280.60614908,0.00011046,2]
[323385689,1713961438155,280.60614908,0.00011046,2]
[323385690,1713961460159,280.60614908,0.00011046,2]
[323385723,1713961478166,280.60614908,0.00011046,2]
[323385724,1713961496135,280.60614908,0.00011046,2]
[323385725,1713961512142,280.60614908,0.00011046,2]
[323385726,1713961530860,186.642404,0.00010959,2]
[323385727,1713961534280,280.60614908,0.00011046,2]
[323385728,1713961550147,280.60614908,0.00011046,2]
[323385729,1713961572174,294.21538479,0.00011046,2]
[323385730,1713961611720,190.6076741,0.0001092,2]
[323385731,1713961748168,8978.45722752,0.00010823,2]
[323385732,1713961748199,15921.54277248,0.00010823,2]
[323385733,1713961781443,1559.8292767,0.00010817,2]
[323385848,1713961838518,-154.84515485,0.00011689,2]
[323385849,1713961838529,-212.0994584,0.0001169,2]
[323385850,1713961838538,-1890.36328834,0.0001169,2]
[323385851,1713961838549,-308.54338713,0.00011691,2]
[323385852,1713961838559,-977.94969331,0.00011691,2]
[323385853,1713961838569,-186.16529809,0.00011692,2]
[323385854,1713961838579,-1678.96711435,0.00011692,2]
[323385855,1713961838588,-805.65920511,0.00011693,2]
[323385886,1713961843745,-769.66018961,0.00011693,2]
[323385887,1713961843755,-189.13981039,0.00011693,2]
[323385888,1713961843767,-1306.7130971,0.00011693,2]
[323385889,1713961843779,-1092.28784117,0.00011693,2]
[323385890,1713961843789,-300.0,0.00011693,2]
[323385891,1713961843798,-261.55255703,0.00011695,2]
[323385898,1713961846593,-48.10681765,0.00011695,2]
[323385899,1713961846603,-171.92694237,0.00012196,2]
[323385900,1713961846613,-287.0,0.0001284,2]
[323385901,1713961846622,-171.92694235,0.00012898,2]
[323385902,1713961846631,-153.0,0.00013,2]
[323385903,1713961846641,-28312.42985592,0.00013085,2]
[323385944,1713962745290,-500.0,0.000138,7]
[323385945,1713962745315,-500.0,0.000138,7]
[323385946,1713962745343,-500.0,0.000138,7]
[323385947,1713962745368,-500.0,0.000138,7]
[323385948,1713962745394,-278.55,0.000138,7]
[323385949,1713962745588,-1584.45455669,0.00018,7]
[323385950,1713962759168,3131.74229205,0.00018,7]
[323385951,1713962759989,150.3041824,0.0001,5]
[323385953,1713962781082,2035.15315126,0.00018,7]
[323385954,1713962812739,4549.3893556,0.0001073,2]
[323385955,1713962870204,154.84515485,0.0001073,2]
[323385956,1713962877540,265.46820019,0.00011132,7]
[323385957,1713962888069,155.47503735,0.0001073,2]
[323385958,1713962891535,265.46820019,0.0001114,7]
[323385959,1713962911568,265.46820019,0.0001114,7]
[323385960,1713962933547,287.45040226,0.0001114,7]
[323385961,1713962962812,154.84515485,0.0001,2]
[323385962,1713962979927,203.53903427,0.0001104,2]
[323385963,1713962991424,3569.33040269,0.0001101,2]
[323385964,1713962999483,6531.53233926,0.0001101,2]
[323385965,1713963008643,1878.39217822,0.00011008,2]
[323385966,1713963017599,154.84515485,0.00011007,2]
[323385967,1713963026393,309.6903097,0.00011006,2]
[323385968,1713963030185,729.48680207,0.00011008,2]
[323386002,1713963032711,-7868.0386131,0.00011116,2]
[323386003,1713963032721,-154.84515485,0.00011117,2]
[323386004,1713963032730,-154.84515485,0.00011117,2]
[323386005,1713963032740,-459.7805489,0.00011117,2]
[323386006,1713963032750,-549.6120096,0.00011117,2]
[323386007,1713963032765,-154.84515485,0.00011118,2]
[323386008,1713963032775,-186.16529809,0.00011118,2]
[323386010,1713963032784,-2624.41567605,0.00011118,2]
[323386012,1713963032793,-1878.39217822,0.00011119,2]
[323386013,1713963032802,-154.84515485,0.0001112,2]
[323386015,1713963032812,-154.84515485,0.0001112,2]
[323386016,1713963032821,-300.0,0.0001112,2]
[323386017,1713963032831,-154.84515485,0.0001112,2]
[323386018,1713963032840,-300.0,0.0001112,2]
[323386019,1713963032850,-1678.96711435,0.00011121,2]
[323386020,1713963032859,-1890.36328834,0.00011121,2]
[323386022,1713963032868,-1575.31939472,0.00011121,2]
[323386023,1713963032877,-408.93284854,0.00011121,2]
[323386024,1713963032886,-977.94969331,0.00011121,2]
[323386025,1713963032895,-155.33015136,0.00011121,2]
[323386026,1713963032904,-1202.39645166,0.00011122,2]
[323386027,1713963032913,-29620.27656983,0.00011123,2]
[323386028,1713963034587,1319.0828682,0.00011006,2]
[323386057,1713963038728,-157.35283749,0.00011122,2]
[323386059,1713963038738,-5567.14642244,0.00011123,2]
[323386064,1713963038779,-23982.31276513,0.00011123,2]
[323386066,1713963038789,-316.39272056,0.00011124,2]
[323386068,1713963038799,-154.84515485,0.00011137,2]
[323386070,1713963038808,-154.84515485,0.00011138,2]
[323386072,1713963038817,-154.84515485,0.00011138,2]
[323386074,1713963038828,-203.54323971,0.00011138,2]
[323386076,1713963038837,-154.89846529,0.0001114,2]
[323386078,1713963038848,-155.65870881,0.0001114,2]
[323386080,1713963038858,-154.8767742,0.0001114,2]
[323386082,1713963038867,-301.07832754,0.0001114,2]
[323386084,1713963038876,-154.89463122,0.0001114,2]
[323386086,1713963038885,-887.29315459,0.0001114,2]
[323386088,1713963038895,-184.84247159,0.0001114,2]
[323386090,1713963038903,-155.35508982,0.0001114,2]
[323386092,1713963038912,-154.98551453,0.0001114,2]
[323386094,1713963038922,-154.93451573,0.0001114,2]
[323386096,1713963038931,-154.9025669,0.0001114,2]
[323386099,1713963038940,-155.0252521,0.0001114,2]
[323386100,1713963038949,-154.92306399,0.0001114,2]
[323386102,1713963038959,-154.92930371,0.0001114,2]
[323386105,1713963038968,-199.60946054,0.0001114,2]
[323386107,1713963038978,-154.96394862,0.0001114,2]
[323386108,1713963038987,-155.33131911,0.0001114,2]
[323386109,1713963038996,-604.00000023,0.00011141,2]
[323386110,1713963039005,-410038.6430462,0.00011142,2]
[323386111,1713963039014,-10969.7911908,0.00011143,2]
[323386112,1713963039023,-1326.71987962,0.00011967,2]
[323386113,1713963039031,-14626.37781058,0.00011968,2]
[323386114,1713963039040,-420.0,0.00012218,2]
[323386116,1713963039049,-420.0,0.00012232,2]
[323386117,1713963039058,-1484.84335445,0.00013083,2]
[323386118,1713963039067,-211.99523783,0.00013083,2]
[323386120,1713963039077,-309.20035172,0.00013083,2]
[323386121,1713963039086,-259.26636976,0.00013084,2]
[323386122,1713963039095,-151.0,0.00013085,2]
[323386123,1713963039104,-151.0,0.00013086,2]
[323386124,1713963039113,-153.43131253,0.00013265,2]
[323386126,1713963039122,-424.13817774,0.00013295,2]
[323386127,1713963039131,-620.16235585,0.00013332,2]
[323386128,1713963039140,-424.13817772,0.00013371,2]
[323386129,1713963039149,-309.67484219,0.00013393,2]
[323386130,1713963039158,-406.90410425,0.00013393,2]
[323386131,1713963039167,-329.68012038,0.00013394,2]
[323386132,1713963039176,-151.0,0.00013395,2]
[323386133,1713963039185,-151.0,0.00013396,2]
[323386134,1713963039194,-326.17957249,0.00013397,2]
[323386135,1713963039204,-154.84515485,0.00013398,2]
[323386136,1713963039213,-306.0,0.000134,2]
[323386137,1713963039222,-153.0,0.000134,2]
[323386138,1713963039231,-153.0,0.000134,2]
[323386139,1713963039240,-153.0,0.000134,2]
[323386140,1713963039248,-153.0,0.000134,2]
[323386141,1713963039258,-153.0,0.000134,2]
[323386142,1713963039267,-153.0,0.000134,2]
[323386143,1713963039276,-153.0,0.000134,2]
[323386144,1713963039285,-153.0,0.000134,2]
[323386145,1713963039293,-306.8569995,0.000134,2]
[323386146,1713963039303,-153.0,0.000134,2]
[323386147,1713963039311,-306.0,0.000134,2]
[323386148,1713963039320,-587.0,0.00013425,2]
[323386149,1713963039331,-424.13817772,0.00013447,2]
[323386150,1713963039340,-587.0,0.00013455,2]
[323386151,1713963039349,-151.0,0.0001349,2]
[323386152,1713963039358,-424.13817772,0.00013523,2]
[323386153,1713963039368,-424.13817772,0.00013599,2]
[323386154,1713963039377,-162.909197,0.00013698,2]
[323386155,1713963039386,-17933.7,0.00013698,2]
[323386156,1713963039395,-151.0,0.00013699,2]
[323386157,1713963039404,-151.0,0.00013699,2]
[323386158,1713963039413,-151.0,0.00013699,2]
[323386159,1713963039422,-151.0,0.00013699,2]
[323386160,1713963039431,-151.0,0.00013699,2]
[323386161,1713963039440,-151.0,0.00013699,2]
[323386162,1713963039450,-151.0,0.00013699,2]
[323386163,1713963039459,-503.525914,0.00013699,2]
[323386164,1713963039467,-503.525914,0.00013699,2]
[323386165,1713963039476,-503.525914,0.00013699,2]
[323386166,1713963039484,-503.525914,0.00013699,2]
[323386167,1713963039493,-503.525914,0.00013699,2]
[323386168,1713963039502,-503.525914,0.00013699,2]
[323386169,1713963039511,-503.525914,0.00013699,2]
[323386170,1713963039520,-503.525914,0.00013699,2]
[323386171,1713963039529,-503.525914,0.00013699,2]
[323386172,1713963039538,-503.525914,0.00013699,2]
[323386173,1713963039547,-503.525914,0.00013699,2]
[323386174,1713963039556,-503.525914,0.00013699,2]
[323386175,1713963039565,-1348.16251,0.00013699,2]
[323386176,1713963039574,-239.353766,0.00013699,2]
[323386177,1713963039585,-239.353766,0.00013699,2]
[323386178,1713963039594,-239.353766,0.00013699,2]
[323386179,1713963039602,-239.353766,0.00013699,2]
[323386180,1713963039612,-239.353766,0.00013699,2]
[323386181,1713963039621,-239.353766,0.00013699,2]
[323386182,1713963039630,-239.353766,0.00013699,2]
[323386183,1713963039639,-239.353766,0.00013699,2]
[323386184,1713963039648,-259.995738,0.00013699,2]
[323386185,1713963039657,-259.995738,0.00013699,2]
[323386186,1713963039666,-259.995738,0.00013699,2]
[323386187,1713963039675,-259.995738,0.00013699,2]
[323386188,1713963039684,-259.995738,0.00013699,2]
[323386189,1713963039694,-259.995738,0.00013699,2]
[323386190,1713963039703,-259.995738,0.00013699,2]
[323386191,1713963039713,-259.995738,0.00013699,2]
[323386192,1713963039723,-259.995738,0.00013699,2]
[323386193,1713963039732,-259.995738,0.00013699,2]
[323386194,1713963039742,-259.995738,0.00013699,2]
[323386195,1713963039751,-259.995738,0.00013699,2]
[323386196,1713963039764,-365.377671,0.00013699,2]
[323386197,1713963039774,-365.377671,0.00013699,2]
[323386198,1713963039783,-365.377671,0.00013699,2]
[323386199,1713963039792,-365.377671,0.00013699,2]
[323386200,1713963039802,-365.377671,0.00013699,2]
[323386201,1713963039812,-365.377671,0.00013699,2]
[323386202,1713963039821,-365.377671,0.00013699,2]
[323386203,1713963039832,-365.377671,0.00013699,2]
[323386204,1713963039842,-365.377671,0.00013699,2]
[323386205,1713963039852,-365.377671,0.00013699,2]
[323386206,1713963039861,-365.377671,0.00013699,2]
[323386207,1713963039870,-365.377671,0.00013699,2]
[323386208,1713963039879,-365.377671,0.00013699,2]
[323386209,1713963039889,-365.377671,0.00013699,2]
[323386210,1713963039898,-365.377671,0.00013699,2]
[323386211,1713963039906,-365.377671,0.00013699,2]
[323386212,1713963039916,-151.0,0.00013699,2]
[323386213,1713963039925,-151.0,0.00013699,2]
[323386214,1713963039934,-503.525914,0.00013699,2]
[323386215,1713963039943,-503.525914,0.00013699,2]
[323386216,1713963039952,-503.525914,0.00013699,2]
[323386217,1713963039962,-503.525914,0.00013699,2]
[323386218,1713963039971,-503.525914,0.00013699,2]
[323386219,1713963039980,-503.525914,0.00013699,2]
[323386220,1713963039989,-503.525914,0.00013699,2]
[323386221,1713963039998,-503.525904,0.00013699,2]
[323386222,1713963040008,-239.353766,0.00013699,2]
[323386223,1713963040017,-239.353766,0.00013699,2]
[323386224,1713963040026,-239.353766,0.00013699,2]
[323386225,1713963040035,-239.353766,0.00013699,2]
[323386226,1713963040044,-239.353766,0.00013699,2]
[323386227,1713963040053,-239.353766,0.00013699,2]
[323386228,1713963040062,-239.353766,0.00013699,2]
[323386229,1713963040072,-239.353766,0.00013699,2]
[323386230,1713963040084,-239.353766,0.00013699,2]
[323386231,1713963040093,-239.353766,0.00013699,2]
[323386232,1713963040102,-239.353766,0.00013699,2]
[323386233,1713963040111,-239.35377,0.00013699,2]
[323386234,1713963040120,-259.995738,0.00013699,2]
[323386235,1713963040129,-259.995738,0.00013699,2]
[323386236,1713963040138,-259.995738,0.00013699,2]
[323386237,1713963040148,-259.995738,0.00013699,2]
[323386238,1713963040157,-259.995738,0.00013699,2]
[323386239,1713963040166,-259.995738,0.00013699,2]
[323386240,1713963040176,-259.995738,0.00013699,2]
[323386241,1713963040185,-259.99573505,0.00013699,2]
[323386242,1713963040195,-365.377671,0.00013699,2]
[323386243,1713963040204,-365.377671,0.00013699,2]
[323386244,1713963040213,-365.377671,0.00013699,2]
[323386245,1713963040223,-365.377663,0.00013699,2]
[323386246,1713963040232,-153.0,0.000137,2]
[323386247,1713963040241,-153.0,0.000137,2]
[323386248,1713963040250,-153.0,0.000137,2]
[323386249,1713963040259,-153.0,0.000137,2]
[323386250,1713963040268,-263.7655541,0.000137,2]
[323386251,1713963040277,-153.0,0.000137,2]
[323386252,1713963040286,-306.0,0.000137,2]
[323386253,1713963040295,-153.0,0.000137,2]
[323386254,1713963040305,-153.0,0.000137,2]
[323386255,1713963040314,-153.0,0.000137,2]
[323386256,1713963040323,-306.0,0.000137,2]
[323386257,1713963040336,-306.0,0.000137,2]
[323386258,1713963040346,-306.0,0.000137,2]
[323386259,1713963040355,-268.3049176,0.000137,2]
[323386260,1713963040364,-153.0,0.000137,2]
[323386261,1713963040373,-153.0,0.000137,2]
[323386262,1713963040382,-306.0,0.000137,2]
[323386263,1713963040391,-306.0,0.000137,2]
[323386264,1713963040401,-415.8031148,0.000137,2]
[323386266,1713963040410,-153.0,0.000137,2]
[323386267,1713963040420,-153.0,0.000137,2]
[323386268,1713963040429,-153.0,0.000137,2]
[323386282,1713963040581,-306.0,0.000137,2]
[323386283,1713963040590,-153.0,0.000137,2]
[323386284,1713963040599,-153.0,0.000137,2]
[323386285,1713963040609,-153.0,0.000137,2]
[323386286,1713963040619,-153.0,0.000137,2]
[323386287,1713963040628,-153.0,0.000137,2]
[323386288,1713963040637,-153.0,0.000137,2]
[323386289,1713963040647,-153.0,0.000137,2]
[323386290,1713963040656,-153.0,0.000137,2]
[323386291,1713963040665,-208.0504494,0.000137,2]
[323386292,1713963040674,-337.393956,0.00013737,2]
[323386293,1713963040683,-418.501,0.00013946,2]
[323386294,1713963040692,-295.0,0.00013946,2]
[323386295,1713963040702,-221.778,0.00013946,2]
[323386296,1713963040711,-17933.7,0.00013972,2]
[323386297,1713963040720,-620.00811779,0.00013999,2]
[323386298,1713963040730,-927.87368973,0.00014,2]
[323386299,1713963040739,-638.01106262,0.00014,2]
[323386300,1713963040749,-153.0,0.0001404,2]
[323386301,1713963040763,-153.0,0.0001404,2]
[323386302,1713963040772,-153.0,0.0001404,2]
[323386303,1713963040781,-153.0,0.0001404,2]
[323386304,1713963040790,-587.0,0.000141,2]
[323386305,1713963040800,-162.41813688,0.00014195,2]
[323386306,1713963040810,-17933.7,0.00014246,2]
[323386307,1713963040819,-1000.0,0.00014452,2]
[323386308,1713963040832,-500.0,0.00014456,2]
[323386309,1713963040841,-1000.0,0.00014462,2]
[323386310,1713963040850,-1000.0,0.00014467,2]
[323386311,1713963040860,-1000.0,0.00014485,2]
[323386312,1713963040869,-1000.0,0.00014486,2]
[323386313,1713963040878,-314.20300914,0.00014498,2]
[323386314,1713963040888,-476.15676877,0.00014516,2]
[323386315,1713963040897,-1490.32391025,0.00014517,2]
[323386316,1713963040906,-17933.7,0.0001452,2]
[323386317,1713963040915,-1000.0,0.00014556,2]
[323386318,1713963040924,-1000.0,0.00014564,2]
[323386319,1713963040933,-1000.0,0.00014576,2]
[323386320,1713963040947,-1000.0,0.00014589,2]
[323386321,1713963040956,-1000.0,0.00014596,2]
[323386322,1713963040965,-1000.0,0.00014642,2]
[323386323,1713963040974,-1000.0,0.00014654,2]
[323386324,1713963040983,-1000.0,0.00014658,2]
[323386325,1713963040992,-1000.0,0.00014682,2]
[323386326,1713963041001,-154.99980925,0.00014695,2]
[323386327,1713963041010,-620.00040589,0.00014699,2]
[323386328,1713963041019,-300.51912783,0.00014703,2]
[323386329,1713963041028,-1000.0,0.00014704,2]
[323386330,1713963041037,-1000.0,0.00014713,2]
[323386331,1713963041046,-153.0,0.00014742,2]
[323386332,1713963041055,-823.0,0.00014751,2]
[323386333,1713963041064,-17933.7,0.00014794,2]
[323386334,1713963041073,-881.58195889,0.00014796,2]
[323386335,1713963041091,-1585.30860742,0.00014796,2]
[323386336,1713963041100,-471.82642597,0.00014796,2]
[323386337,1713963041110,-267.6305246,0.00014796,2]
[323386338,1713963041119,-2645.2961,0.000148,2]
[323386339,1713963041129,-823.0,0.00014801,2]
[323386340,1713963041139,-153.0,0.00014802,2]
[323386341,1713963041148,-153.0,0.00014983,2]
[323386342,1713963041158,-258.3285172,0.00014983,2]
[323386343,1713963041167,-362.97368224,0.00014999,2]
[323386344,1713963041176,-154.84515485,0.00014999,2]
[323386345,1713963041185,-2099.79903615,0.00015,2]
[323386346,1713963041194,-628.29006624,0.00015,2]
[323386347,1713963041203,-1676.10589151,0.00015,2]
[323386348,1713963041212,-157.06659545,0.00015,2]
[323386349,1713963041221,-938.69803003,0.00015,2]
[323386350,1713963041230,-2776.29930889,0.00015,2]
[323386351,1713963041239,-154.84515485,0.00015,2]
[323386352,1713963041248,-312.66661178,0.00015,2]
[323386353,1713963041258,-309.62844586,0.00015,2]
[323386354,1713963041267,-842.373538,0.00015,2]
[323386355,1713963041276,-842.373539,0.00015,2]
[323386356,1713963041284,-201.0,0.00015,2]
[323386357,1713963041293,-17933.7,0.00015068,2]
[323386358,1713963041302,-153.0,0.00015311,2]
[323386359,1713963041311,-153.0,0.00015311,2]
[323386360,1713963041320,-620.00002029,0.00015434,2]
[323386361,1713963041334,-153.0,0.00015564,2]
[323386362,1713963041343,-153.0,0.00015564,2]
[323386363,1713963041352,-155.11032387,0.00015817,2]
[323386364,1713963041361,-44146.31577529,0.0001599,2]
[323386365,1713963041370,-15215.38422108,0.00016,2]
[323386366,1713963041379,-238.93971122,0.00016,2]
[323386367,1713963041388,-30000.0,0.00016,2]
[323386368,1713963041397,-5000.0,0.00016,2]
[323386369,1713963041406,-620.00000101,0.00016205,2]
[323386370,1713963041415,-1084.0,0.00016207,2]
[323386371,1713963041424,-1152.0,0.00016281,2]
[323386372,1713963041434,-31568.31209807,0.00016296,2]
[323386373,1713963041443,-177.75,0.000164,2]
[323386374,1713963041452,-151.586815,0.00016438,2]
[323386375,1713963041461,-1345.39,0.00016438,2]
[323386376,1713963041472,-200.09147316,0.00016438,2]
[323386377,1713963041482,-500.0,0.00016438,2]
[323386378,1713963041491,-500.0,0.00016438,2]
[323386379,1713963041500,-500.0,0.00016438,2]
[323386380,1713963041509,-500.0,0.00016438,2]
[323386381,1713963041517,-1355.25,0.00016438,2]
[323386382,1713963041527,-623.19,0.00016438,2]
[323386383,1713963041536,-500.33849054,0.00016438,2]
[323386384,1713963041545,-500.0,0.00016438,2]
[323386385,1713963041554,-500.0,0.00016438,2]
[323386386,1713963041564,-500.0,0.00016438,2]
[323386387,1713963041573,-500.0,0.00016438,2]
[323386388,1713963041585,-500.0,0.00016438,2]
[323386389,1713963041594,-500.0,0.00016438,2]
[323386390,1713963041603,-505.59078504,0.00016438,2]
[323386391,1713963041612,-500.0,0.00016438,2]
[323386392,1713963041621,-500.0,0.00016438,2]
[323386393,1713963041630,-275.93619471,0.00016438,2]
[323386394,1713963041639,-528.40626369,0.00016438,2]
[323386395,1713963041649,-518.06,0.00016438,2]
[323386396,1713963041658,-500.88350996,0.00016438,2]
[323386397,1713963041667,-500.0,0.00016438,2]
[323386398,1713963041676,-2004.44,0.00016438,2]
[323386399,1713963041686,-500.0,0.00016438,2]
[323386400,1713963041695,-500.0,0.00016438,2]
[323386401,1713963041704,-700.25,0.00016438,2]
[323386402,1713963041713,-1054.76,0.00016438,2]
[323386403,1713963041722,-500.0,0.00016438,2]
[323386404,1713963041731,-624.27,0.00016438,2]
[323386405,1713963041741,-432.75212267,0.00016438,2]
[323386406,1713963041750,-500.0,0.00016438,2]
[323386407,1713963041763,-389.04537626,0.00016438,2]
[323386408,1713963041772,-500.0,0.00016438,2]
[323386409,1713963041781,-1563.32,0.00016438,2]
[323386410,1713963041790,-500.0,0.00016438,2]
[323386411,1713963041800,-500.23811405,0.00016438,2]
[323386412,1713963041809,-504.04218812,0.00016438,2]
[323386413,1713963041818,-218.09013133,0.00016438,2]
[323386414,1713963041829,-544.68851495,0.00016438,2]
[323386415,1713963041840,-502.80810411,0.00016438,2]
[323386416,1713963041850,-500.0,0.00016438,2]
[323386417,1713963041860,-500.0,0.00016438,2]
[323386418,1713963041869,-151.36560727,0.00016438,2]
[323386419,1713963041878,-501.36285965,0.00016438,2]
[323386420,1713963041887,-503.30258881,0.00016438,2]
[323386421,1713963041896,-500.0,0.00016438,2]
[323386422,1713963041905,-500.0,0.00016438,2]
[323386423,1713963041914,-635.05,0.00016438,2]
[323386424,1713963041923,-421.82999351,0.00016438,2]
[323386425,1713963041932,-500.0,0.00016438,2]
[323386426,1713963041941,-500.0,0.00016438,2]
[323386427,1713963041950,-500.0,0.00016438,2]
[323386428,1713963041959,-500.0,0.00016438,2]
[323386429,1713963041968,-500.0,0.00016438,2]
[323386430,1713963041978,-500.0,0.00016438,2]
[323386431,1713963041987,-500.0,0.00016438,2]
[323386432,1713963041996,-500.0,0.00016438,2]
[323386433,1713963042005,-313.11472914,0.00016438,2]
[323386434,1713963042014,-500.0,0.00016438,2]
[323386435,1713963042024,-500.0,0.00016438,2]
[323386436,1713963042033,-500.0,0.00016438,2]
[323386437,1713963042042,-500.0,0.00016438,2]
[323386438,1713963042051,-500.0,0.00016438,2]
[323386439,1713963042060,-500.0,0.00016438,2]
[323386440,1713963042069,-154.84515485,0.00016438,2]
[323386441,1713963042080,-1154.38,0.00016438,2]
[323386442,1713963042089,-500.0,0.00016438,2]
[323386443,1713963042098,-504.32436504,0.00016438,2]
[323386444,1713963042108,-500.0,0.00016438,2]
[323386445,1713963042117,-500.0,0.00016438,2]
[323386446,1713963042126,-500.0,0.00016438,2]
[323386447,1713963042135,-500.0,0.00016438,2]
[323386448,1713963042144,-500.0,0.00016438,2]
[323386449,1713963042154,-500.0,0.00016438,2]
[323386450,1713963042163,-500.0,0.00016438,2]
[323386451,1713963042173,-944.09,0.00016438,2]
[323386452,1713963042182,-500.0,0.00016438,2]
[323386453,1713963042191,-500.0,0.00016438,2]
[323386454,1713963042201,-500.0,0.00016438,2]
[323386455,1713963042209,-500.76294847,0.00016438,2]
[323386456,1713963042218,-500.0,0.00016438,2]
[323386457,1713963042227,-1016.98,0.00016438,2]
[323386458,1713963042237,-500.0,0.00016438,2]
[323386459,1713963042246,-665.35,0.00016438,2]
[323386460,1713963042255,-506.66663132,0.00016438,2]
[323386461,1713963042265,-500.0,0.00016438,2]
[323386462,1713963042273,-500.0,0.00016438,2]
[323386463,1713963042283,-500.83165613,0.00016438,2]
[323386464,1713963042292,-856.77,0.00016438,2]
[323386465,1713963042301,-500.0,0.00016438,2]
[323386466,1713963042309,-500.0,0.00016438,2]
[323386467,1713963042319,-503.51296791,0.00016438,2]
[323386468,1713963042328,-500.0,0.00016438,2]
[323386469,1713963042338,-500.0,0.00016438,2]
[323386470,1713963042347,-763.09,0.00016438,2]
[323386471,1713963042355,-500.0,0.00016438,2]
[323386472,1713963042364,-500.60779908,0.00016438,2]
[323386473,1713963042373,-1024.11,0.00016438,2]
[323386474,1713963042382,-610.11017992,0.00016438,2]
[323386475,1713963042391,-500.81982307,0.00016438,2]
[323386476,1713963042400,-500.0,0.00016438,2]
[323386477,1713963042409,-500.0,0.00016438,2]
[323386478,1713963042418,-500.0,0.00016438,2]
[323386479,1713963042428,-500.0,0.00016438,2]
[323386480,1713963042437,-500.0,0.00016438,2]
[323386481,1713963042446,-500.0,0.00016438,2]
[323386482,1713963042455,-500.0,0.00016438,2]
[323386483,1713963042465,-500.0,0.00016438,2]
[323386484,1713963042474,-500.0,0.00016438,2]
[323386485,1713963042483,-500.0,0.00016438,2]
[323386486,1713963042493,-500.69191621,0.00016438,2]
[323386487,1713963042502,-1299.98,0.00016438,2]
[323386488,1713963042512,-500.0,0.00016438,2]
[323386489,1713963042521,-500.0,0.00016438,2]
[323386490,1713963042530,-500.0,0.00016438,2]
[323386491,1713963042539,-500.0,0.00016438,2]
[323386492,1713963042548,-500.0,0.00016438,2]
[323386493,1713963042558,-500.0,0.00016438,2]
[323386494,1713963042567,-1060.8,0.00016438,2]
[323386495,1713963042577,-500.0,0.00016438,2]
[323386496,1713963042589,-500.0,0.00016438,2]
[323386497,1713963042598,-500.0,0.00016438,2]
[323386498,1713963042607,-1289.89,0.00016438,2]
[323386499,1713963042617,-500.0,0.00016438,2]
[323386500,1713963042626,-500.0,0.00016438,2]
[323386501,1713963042636,-5257.38,0.00016438,2]
[323386502,1713963042645,-500.0,0.00016438,2]
[323386503,1713963042654,-500.0,0.00016438,2]
[323386504,1713963042663,-1613.68,0.00016438,2]
[323386505,1713963042672,-502.72103971,0.00016438,2]